Cogmind - Beta 11 --- EXPLORER MODE // 2022.03.20 @ 18:36:21 Player: PhenomPhear Result: Self-destructed Performance ------------- Evolutions (1) 500 Regions Visited (5) 1000 Robots Destroyed (63) 315 Value Destroyed (1328) 1328 Prototype IDs (27) 540 Alien Tech Used (0) 0 Bonus (414) 414 TOTAL SCORE: 4097 Bonus ------- Follower Combat Kills 114 Aligned with FarCom 300 Cogmind --------- Core Integrity 364/400 Matter 125/300 Energy 250/250 System Corruption 2% Temperature Cool (0) Movement Treading (240) Ox1 Location -9/Exiles Parts ------- > --- POWER (1) -------- Ion Engine > --- PROPULSION (2) --- Light Treads Light Treads > --- UTILITY (4) ------ Cooling System High-capacity Storage Unit Targeting Computer Hardened Light Armor Plating > --- WEAPON (3) ------- Light Cannon Light Cannon Light Cannon > --- INVENTORY (20) --- Light Ion Engine Light Nuclear Core Aluminum Leg Aluminum Leg Medium Storage Unit High-capacity Matter Pod (200) Trap Scanner Signal Interpreter Seismic Detector Propulsion Shielding Weapon Shielding Light Armor Plating Medium Laser Light Assault Rifle Grenade Launcher EMP Trap EMP Trap EMP Trap EMP Trap EMP Trap Peak State ------------ > --- POWER ------------ Ion Engine > --- PROPULSION ------- Light Treads Light Treads > --- UTILITY ---------- Improved Heat Sink High-capacity Storage Unit Targeting Computer Light Armor Plating > --- WEAPON ----------- Light Cannon Light Cannon Light Cannon > --- INVENTORY -------- Light Ion Engine Light Nuclear Core Aluminum Leg Aluminum Leg Medium Storage Unit High-capacity Matter Pod Signal Interpreter Seismic Detector Propulsion Shielding Weapon Shielding Medium Laser Light Assault Rifle Grenade Launcher EMP Trap EMP Trap EMP Trap EMP Trap EMP Trap [Rating: 14] Favorites ----------- Power Ion Engine Engine Ion Engine Propulsion Light Treads Treads Light Treads Utility High-capacity Storage Unit Device Cooling System Storage High-capacity Storage Unit Processor Targeting Computer Protection Hardened Light Armor Plating Weapon Light Cannon Energy Gun Medium Laser Ballistic Gun Light Assault Rifle Ballistic Cannon Light Cannon Launcher Grenade Launcher Build | -11 -10 -10 -9 -9 -9 ------- Run | Scr Mat Min Mat Min Exi Slots Evolved 3 | . 1 . 2 . . Power . | . . . . . . Propulsion . | . . . . . . Utility 2 | . . . 2 . . Weapon 1 | . 1 . . . . Parts Attached 20 | 8 6 . 6 . . Power 1 | 1 . . . . . Engine 1 | 1 . . . . . Core . | . . . . . . Reactor . | . . . . . . Propulsion 2 | 2 . . . . . Treads 2 | 2 . . . . . Leg . | . . . . . . Wheel . | . . . . . . Hover . | . . . . . . Flight . | . . . . . . Utility 8 | 2 2 . 4 . . Device 3 | 1 . . 2 . . Storage 2 | 1 1 . . . . Processor 1 | . . . 1 . . Hackware . | . . . . . . Protection 2 | . 1 . 1 . . Artifact . | . . . . . . Weapon 9 | 3 4 . 2 . . Energy Gun 3 | 2 1 . . . . Energy Cannon . | . . . . . . Ballistic Gun 1 | 1 . . . . . Ballistic Cannon 4 | . 3 . 1 . . Launcher 1 | . . . 1 . . Special Weapon . | . . . . . . Impact Weapon . | . . . . . . Slashing Weapon . | . . . . . . Piercing Weapon . | . . . . . . Special Melee Weapon . | . . . . . . Unidentified Prototypes . | . . . . . . Parts Lost . | . . . . . . Power . | . . . . . . Propulsion . | . . . . . . Utility . | . . . . . . Weapon . | . . . . . . Highest Loss Streak . | . . . . . . To Critical Strikes . | . . . . . . Average Slot Usage (%) 99 | . 99 100 100 100 100 Engine 10 | . 12 12 10 10 10 Treads 22 | . 25 25 20 20 20 Device 5 | . . . 10 10 10 Storage 10 | . 12 12 10 10 10 Processor 5 | . . . 10 10 10 Protection 10 | . 11 12 10 10 10 Ballistic Cannon 32 | . 33 37 30 30 30 Naked Turns . | . . . . . . Heaviest Build 61 | 20 57 57 61 61 61 Greatest Support 40 | 40 40 40 40 40 40 Greatest Overweight (x) 1 | . 1 1 1 1 1 Average Overweight (x) . | . . 1 1 1 1 Largest Inventory Capacity 20 | 10 20 20 20 20 20 Average Capacity 19 | 8 19 20 20 20 20 Most Carried 20 | 7 14 20 20 20 20 Average Carried 17 | 4 12 17 19 20 20 Final Capacity 20 | 10 20 20 20 20 20 Final Carried 20 | 7 14 20 20 20 20 Class Distribution -------------------- 58% | Hacker-Gunner 41% | Hacker-Tank Dominant Class ---------------- Hacker-Tank | -10/Materials Hacker-Tank | -10/Mines Hacker-Gunner | -9/Materials Hacker-Gunner | -9/Mines Hacker-Gunner | -9/Exiles Resources | -11 -10 -10 -9 -9 -9 ----------- Run | Scr Mat Min Mat Min Exi Matter Collected 1285 | 180 470 84 529 22 . Remotely . | . . . . . . Salvage Created 1633 | 20 368 90 1133 22 . Parts 134 | 3 30 19 78 4 . Haulers Intercepted 5 | . 2 . 3 . . Recyclers Shooed 1 | 1 . . . . . Parts Field Recycled . | . . . . . . Retrieved Matter . | . . . . . . Parts Self-Destructed . | . . . . . . Prevented . | . . . . . . Kills | -11 -10 -10 -9 -9 -9 ------- Run | Scr Mat Min Mat Min Exi Combat Hostiles Destroyed 35 | . 11 1 23 . . Cannons 32 | . 11 1 20 . . AOE 3 | . . . 3 . . Classes Destroyed 11 | 1 4 2 4 . . Worker 11 | 1 2 2 6 . . Builder 5 | . . 2 2 1 . Tunneler 1 | . . 1 . . . Hauler 5 | . 2 . 3 . . Recycler 3 | . . . 3 . . Watcher 3 | . 2 . 1 . . Swarmer 6 | . 2 1 3 . . Grunt 21 | . 9 . 12 . . Brawler 1 | . . . 1 . . Duelist 1 | . . . 1 . . Sentry 6 | . . . 6 . . Best Kill Streak 7 | 1 5 2 7 1 . Combat Bots Only 4 | . 2 1 4 . . Max Kills in Single Turn 3 | 1 2 2 3 1 . Gunslinging . | . . . . . . Exploded 3 | . . . 3 . . Melee . | . . . . . . Uniques/NPCs Destroyed . | . . . . . . Combat | -11 -10 -10 -9 -9 -9 -------- Run | Scr Mat Min Mat Min Exi Damage Taken 470 | . 135 42 293 . . Core 43 | . 7 . 36 . . Absorbed by Shields . | . . . . . . Core Remaining (%) 98 | 100 . 97 . . . Volleys Fired 83 | 3 26 7 46 1 . Largest 3 | 2 3 3 3 3 . Hottest 105 | 70 105 105 105 105 . Shots Fired 244 | 6 78 21 136 3 . Gun 6 | 6 . . . . . Cannon 237 | . 78 21 135 3 . Launcher 1 | . . . 1 . . Special . | . . . . . . Kinetic 240 | 3 78 21 135 3 . Thermal 3 | 3 . . . . . Explosive 1 | . . . 1 . . Electromagnetic . | . . . . . . Robot Hit Streak 25 | 3 25 9 23 4 . Robot Miss Streak 3 | 1 3 1 1 . . Penetration Max . | . . . . . . Secondary Targets . | . . . . . . Shots Hit Robots 152 | 4 50 12 84 2 . Core Hits 75 | 2 19 7 46 1 . Critical Kills . | . . . . . . Critical Parts Destroyed . | . . . . . . Critical Strikes 6 | . 2 . 4 . . Blast 6 | . 2 . 4 . . Melee Attacks . | . . . . . . Impact . | . . . . . . Slashing . | . . . . . . Piercing . | . . . . . . Sneak Attacks . | . . . . . . Combat Hostiles . | . . . . . . Follow-up Attacks . | . . . . . . Damage Inflicted 2965 | 40 898 259 1736 32 . Guns 40 | 40 . . . . . Cannons 2736 | . 886 249 1569 32 . Explosions 167 | . . . 167 . . Melee . | . . . . . . Ramming 22 | . 12 10 . . . Kinetic 2751 | 15 886 249 1569 32 . Thermal 25 | 25 . . . . . Explosive 167 | . . . 167 . . Electromagnetic . | . . . . . . Impact . | . . . . . . Slashing . | . . . . . . Piercing . | . . . . . . Highest Corruption 2 | . . . 2 2 2 Average Corruption 1 | . . . 1 2 2 Corruption Purged . | . . . . . . Corruption Blocked . | . . . . . . Effects 36 | . . . 3 17 16 Message Errors 7 | . . . 1 2 4 Matter Fused 14 | . . . 1 6 7 Heat Flow Errors 6 | . . . . 4 2 Energy Discharges 3 | . . . . . 3 Data Loss (minor) 4 | . . . 1 3 . Data Loss (major) 1 | . . . . 1 . Alerts 1 | . . . . 1 . Overload Shots . | . . . . . . Overflow Damage 11 | . . . 11 . . Projectiles 6 | . . . 6 . . Explosions 5 | . . . 5 . . Melee . | . . . . . . Knockbacks 22 | . 8 3 10 1 . Impact . | . . . . . . Kinetic 22 | . 8 3 10 1 . Secondary . | . . . . . . Self-Inflicted Damage 8 | . . . 8 . . Shots 1 | . . . 1 . . Rammed 3 | . 2 1 . . . Targets Rammed 3 | . 2 1 . . . Kicked . | . . . . . . Crushed . | . . . . . . Highest Temperature 283 | 50 283 63 22 138 203 Average Temperature 72 | 28 91 30 3 69 97 Received Heat Transfer 366 | . 90 36 240 . . Siege Activations . | . . . . . . Robots Corrupted . | . . . . . . Combat Hostiles . | . . . . . . Parts Fried . | . . . . . . Impact Corruptions . | . . . . . . Robots Melted . | . . . . . . Combat Hostiles . | . . . . . . Parts Melted . | . . . . . . Heat Transferred 74 | 74 . . . . . Parts Sabotaged . | . . . . . . Parts Stolen . | . . . . . . Parts Stripped . | . . . . . . Power Chain Reactions . | . . . . . . Missiles Intercepted . | . . . . . . Alert | -11 -10 -10 -9 -9 -9 ------- Run | Scr Mat Min Mat Min Exi Peak Influence 310 | 5 215 61 310 5 . Initial 2 | . 2 . . . . Average 50 | . 50 25 125 . . Maximum Alert Level 1 | . 1 . 1 . . Low Security (%) 93 | 100 95 100 76 100 . Level 1 6 | . 4 . 23 . . Level 2 . | . . . . . . Level 3 . | . . . . . . Level 4 . | . . . . . . Level 5 . | . . . . . . High Security . | . . . . . . Max Security . | . . . . . . Squads Dispatched 4 | . 1 . 3 . . Investigation 3 | . 1 . 2 . . Extermination . | . . . . . . Reinforcement 1 | . . . 1 . . Assault . | . . . . . . Garrison . | . . . . . . Intercept . | . . . . . . Searches Triggered . | . . . . . . Construction Impeded 1 | . . . 1 . . Haulers Reinforced . | . . . . . . Active Scanning Responses . | . . . . . . Cargo Convoy Interrupts . | . . . . . . Stealth | -11 -10 -10 -9 -9 -9 --------- Run | Scr Mat Min Mat Min Exi Distress Signals 4 | . 2 . 2 . . Communications Jammed . | . . . . . . Distress Signals . | . . . . . . Times Spotted 52 | . 17 6 29 . . Peak Tracking Total 4 | . 2 2 4 . . Tactical Retreats . | . . . . . . Traps | -11 -10 -10 -9 -9 -9 ------- Run | Scr Mat Min Mat Min Exi Traps Triggered 2 | . . . 2 . . Indirectly . | . . . . . . Trap Hack Attempts . | . . . . . . Triggered . | . . . . . . Disarmed . | . . . . . . Reprogrammed . | . . . . . . Reused . | . . . . . . Traps Extracted . | . . . . . . Installed . | . . . . . . Triggered . | . . . . . . Most Traps Carried 5 | . . 5 5 5 5 Machines | -11 -10 -10 -9 -9 -9 ---------- Run | Scr Mat Min Mat Min Exi Machines Disabled 3 | . 3 . . . . Max in Single Turn 2 | . 2 . . . . Machines Sabotaged . | . . . . . . Garrisons Compromised . | . . . . . . Overloaded Fab Kills . | . . . . . . Hacking | -11 -10 -10 -9 -9 -9 --------- Run | Scr Mat Min Mat Min Exi Machines Accessed 19 | . 9 . 9 . 1 Terminals 16 | . 8 . 8 . . Fabricators . | . . . . . . Repair Stations . | . . . . . . Recycling Units 1 | . 1 . . . . Scanalyzers 1 | . . . 1 . . Garrison Access . | . . . . . . Total Hacks 62 | . 18 . 43 . 1 Successful 49 | . 13 . 35 . 1 Failed 13 | . 5 . 8 . . Catastrophic . | . . . . . . Database Lockouts . | . . . . . . Manual 14 | . 2 . 11 . 1 Terminals 44 | . 17 . 27 . . Fabricators . | . . . . . . Repair Stations . | . . . . . . Recycling Units 1 | . 1 . . . . Scanalyzers 16 | . . . 16 . . Garrison Access . | . . . . . . Terminal Hacks 32 | . 12 . 19 . 1 Record 3 | . . . 3 . . Robot Analysis 7 | . 2 . 5 . . Prototype ID Bank 2 | . 1 . 1 . . Level Access Points 1 | . . . 1 . . Branch Access Points 1 | . 1 . . . . Garrison Index 1 | . . . 1 . . Alert Level 3 | . 2 . 1 . . Unreport Threat 2 | . . . 2 . . Locate Traps 1 | . . . 1 . . Security Status 1 | . 1 . . . . Hauler Manifests 1 | . 1 . . . . Registered Components 1 | . 1 . . . . Zone Layout 7 | . 3 . 4 . . EX-Prototype ID Bank 1 | . . . . . 1 Fabricator Hacks . | . . . . . . Repair Station Hacks . | . . . . . . Recycling Unit Hacks 1 | . 1 . . . . Retrieve Components 1 | . 1 . . . . Scanalyzer 16 | . . . 16 . . Insert Component 8 | . . . 8 . . Analyze 8 | . . . 8 . . Garrison Access Hacks . | . . . . . . Unauthorized Hacks . | . . . . . . Terminals . | . . . . . . Fabricators . | . . . . . . Repair Stations . | . . . . . . Recycling Units . | . . . . . . Scanalyzers . | . . . . . . Garrison Access . | . . . . . . Data Cores Recovered . | . . . . . . Used . | . . . . . . Hacking Detections 12 | . 5 . 7 . . Full Trace Events 4 | . 1 . 3 . . Feedback Events . | . . . . . . Feedback Blocked . | . . . . . . Robot Schematics Acquired . | . . . . . . Robots Built . | . . . . . . Authchips . | . . . . . . Time . | . . . . . . Total Robot Build Rating . | . . . . . . Part Schematics Acquired 8 | . . . 8 . . Parts Built . | . . . . . . Authchips . | . . . . . . Time . | . . . . . . Total Part Build Rating . | . . . . . . Parts Repaired . | . . . . . . Time . | . . . . . . Parts Recycled . | . . . . . . Recycled Matter . | . . . . . . Retrieved Matter . | . . . . . . Retrieved Components 2 | . 2 . . . . Parts Scanalyzed 8 | . . . 8 . . Part Schematics Acquired 8 | . . . 8 . . Parts Damaged 1 | . . . 1 . . Bothacking | -11 -10 -10 -9 -9 -9 ------------ Run | Scr Mat Min Mat Min Exi Used RIF Installer . | . . . . . . Robots Hacked . | . . . . . . Non-combat . | . . . . . . Combat . | . . . . . . Robot Hacks Applied . | . . . . . . Relay Couplers Released . | . . . . . . Fabnet Peak Effective % . | . . . . . . Robots Rewired . | . . . . . . Allies Hacked . | . . . . . . Hacks Repelled . | . . . . . . Allies | -11 -10 -10 -9 -9 -9 -------- Run | Scr Mat Min Mat Min Exi Total Allies 5 | . . 5 . . . Largest Group 4 | . . 4 3 . . Highest-Rated Group 68 | . . 68 52 . . Highest-Rated Ally 31 | . . 31 31 . . Total Orders . | . . . . . . Ally Attacks 26 | . . 19 7 . . Total Damage 299 | . . 213 86 . . Kills 7 | . . 5 2 . . Allies Corrupted 1 | . . . 1 . . Allies Melted . | . . . . . . Intel | -11 -10 -10 -9 -9 -9 ------- Run | Scr Mat Min Mat Min Exi Robot Analysis Total 6 | . 2 . 4 . . Derelict Logs Recovered 2 | . . 2 . . . Drone Launches . | . . . . . . Drone Recoveries . | . . . . . . Exploration | -11 -10 -10 -9 -9 -9 ------------- Run | Scr Mat Min Mat Min Exi Turns Passed 7495 | 117 1468 1740 1607 1461 1102 Spaces Moved 2939 | 55 594 651 591 589 459 Core 5 | 5 . . . . . Treads 2934 | 50 594 651 591 589 459 Legs . | . . . . . . Wheels . | . . . . . . Hover . | . . . . . . Flight . | . . . . . . Fastest Speed 50 | 50 160 240 240 240 240 Average Speed 235 | 150 228 240 240 240 240 Slowest Speed 240 | 160 240 240 240 240 240 Overloaded Moves . | . . . . . . Propulsion Burnouts . | . . . . . . Robots Hopped . | . . . . . . Cave-ins Triggered . | . . . . . . Exploration Rate (%) 72 | 5 80 99 64 98 86 Regions Visited 5 Branch Regions 3 Pre-discovered Areas 1 | . . 1 . . . Known Exits Taken 5 | 1 1 1 1 1 . Unknown Exits Taken . | . . . . . . Scrap Searched 2 | . . 2 . . . Spaces Dug . | . . . . . . Terrain Destroyed 5 | . . . 5 . . Melee . | . . . . . . Projectile . | . . . . . . AOE 5 | . . . 5 . . Terrain Rammed . | . . . . . . Walls Destroyed . | . . . . . . Machines Disabled . | . . . . . . Actions | -11 -10 -10 -9 -9 -9 --------- Run | Scr Mat Min Mat Min Exi Total 3309 | 80 645 813 677 635 459 Wait 245 | 8 11 147 33 46 . Move 2934 | 54 593 650 590 588 459 Hop . | . . . . . . Pick Up 19 | 7 4 7 1 . . Fast Attach 10 | 7 3 . . . . Attach 3 | . 1 . 2 . . Detach 3 | . 3 . . . . Swap 7 | 1 2 . 4 . . Drop 2 | . . 1 1 . . Fire 83 | 3 26 7 46 1 . Melee . | . . . . . . Ram . | . . . . . . Kick . | . . . . . . Crush 3 | . 2 1 . . . Escape Stasis . | . . . . . . Rewire . | . . . . . . Trap . | . . . . . . Miscellaneous . | . . . . . . Route ------- -11/Scrapyard -10/Materials (discovered 4 exits: *Mat x3 / *Min) -10/Mines (discovered 2 exits: *Mat x2) -9/Materials (discovered 4 exits: *Mat x3 / *Min) -9/Mines (discovered 3 exits: *Mat x2 / *Exi) -9/Exiles (discovered 1 exit: *Min) History --------- Turn | Location | Event 8 | -11/Scrapyard | Identified exit to Materials 8 | -11/Scrapyard | Discovered exit to Materials (range 15) 118 | -11/Scrapyard | Entered Materials 118 | -10/Materials | Evolved 1 slot: Weapon x1 484 | -10/Materials | Identified exit to Materials 484 | -10/Materials | Discovered exit to Materials (range 15) 506 | -10/Materials | Build established: Hacker-Tank 752 | -10/Materials | Identified exit to Mines 1028 | -10/Materials | Discovered exit to Materials (range 13) 1186 | -10/Materials | Discovered exit to Materials (range 9) 1586 | -10/Materials | Entered Mines 1673 | -10/Mines | Assisted by bots powering up and referring to "LRC-V3" 1781 | -10/Mines | Learned location of Storage (-7) 1978 | -10/Mines | Learned Materials stockpile data 2076 | -10/Mines | Discovered exit to Materials (range 12) 2240 | -10/Mines | Discovered exit to Materials (range 9) 2498 | -10/Mines | Found a hidden stash of uninstalled traps 3044 | -10/Mines | Joined a pair of Derelicts in attacking an 0b10 outpost 3326 | -10/Mines | Entered Materials 3326 | -9/Materials | Accompanied by 3 allies 3326 | -9/Materials | Evolved 2 slots: Utility x2 3331 | -9/Materials | Led the pair of lost Derelicts to an unsafe place 3508 | -9/Materials | Identified exit to Materials 3634 | -9/Materials | Build established: Hacker-Gunner 4895 | -9/Materials | Identified exit to Mines 4895 | -9/Materials | Discovered exit to Mines (range 16) 4933 | -9/Materials | Entered Mines 5083 | -9/Mines | YI-UF0 nonchalantly dropped a Grenade Launcher on the ground 5325 | -9/Mines | Discovered exit to Materials (range 15) 6024 | -9/Mines | Discovered exit to Materials (range 9) 6384 | -9/Mines | Deemed a non-threat by the Exiles lab entrance 6384 | -9/Mines | Identified exit to Exiles 6384 | -9/Mines | Discovered exit to Exiles (range 5) 6394 | -9/Mines | Entered Exiles 6452 | -9/Exiles | Met 8R-AWN 6493 | -9/Exiles | Met EX-HEX 6584 | -9/Exiles | Met EX-DEC 6667 | -9/Exiles | Visited The Gauntlet 6937 | -9/Exiles | Met EX-BIN 7198 | -9/Exiles | Identified exit to Mines 7198 | -9/Exiles | Discovered exit to Mines (range 10) 7422 | -9/Exiles | Aligned with FarCom system 7424 | -9/Exiles | Given EX-Vault access code 7482 | -9/Exiles | Opened EX-Vault 7496 | -9/Exiles | Self-destructed Last Messages --------------- Modified TNC 0b10 Alert Chip Cloak of Protection Skeleton Box Trap Reconfigurator Supersonic Drone Bay Army-in-a-Box PSU Rigger Chronowheel AWS/Thermal Latent Energy Streamer Gui. Plasma Cannon Firepult YOLO Cannon AWS/Gauss XL Autogun Array AWS/Autocannon Field Lobotomy Kit Longsword +1 Deploy-a-Sentry Map ----- +----------------------------------------------------+ | | | | | | | | | | | | | | | | | | | | | | | | | | | | | | | | | | | | | | | | | | | | | ???????????????????#########?????????????????????? | | ???????????????????# #?????????????????????? | | ???????????????????# ] #?????????????????????? | | ???????????????????# ] @!#?????????????????????? | | ???????????????????# X#?????????????????????? | | ???????????????????## ##?????????????????????? | | ???????????????????#X #??????????????????????? | | ???????????????????## #??????????????????????? | | ????????????????????# #??????????????????????? | | ????????????????????# #???###????????????????? | | ????????????????????# #??"""""#??????????????? | | ????????????????????# ## """#??????????????? | | ????????????????????# X""#??????????????? | | ????????????????????# ## """#??????????????? | | ??????????????####??# #??"""""#??????????????? | | ??????????????"""""?# #???###????????????????? | | ?????????????"""" ## #??????????????????????? | | ????????????#""X" #??????????????????????? | | ????????????#" #??????????????????????? | | ????????????#" ## #??????????????????????? | | ????????????#""""""?# #?#########????????????? | | ?????????????#"###??# #?#"""""""#????????????? | | ????????????????????# #?#"""""""#????????????? | | ????????????????????# #?#"""""""#????????????? | | ???????????????????## ###"" """"#????????????? | | ???????????????????#" """"#????????????? | | ???????????????????#" """#????????????? | | ???????????????????#" """#????????????? | +----------------------------------------------------+ Best States ------------- Heat Dissipation 50 Energy Generation 10 Energy Capacity 250 Matter Stores 300 Matter Capacity 300 Sight Range 16 Terrain Scan Density 10 Armor Coverage 150 Resistance: KI 35 Resistance: TH 35 Resistance: EX 35 Resistance: EM 35 Resistance: I 35 Resistance: S 35 Resistance: P 35 Evasion (%) 40 Targeting Accuracy 5 Recoil Reduction 2 Offensive Hacking 20 Item Schematics ----------------- Lgt. Armor Plating | -9/Materials | Scanalyzed Lgt. Assault Rifle | -9/Materials | Scanalyzed Grenade Launcher | -9/Materials | Scanalyzed Imp. Heat Sink | -9/Materials | Scanalyzed Lgt. Ion Engine | -9/Materials | Scanalyzed Med. Laser | -9/Materials | Scanalyzed Hcp. Matter Pod | -9/Materials | Scanalyzed Lgt. Nuclear Core | -9/Materials | Scanalyzed Robot Schematics ------------------ None Fabricated ------------ Nothing Alien Tech Used ----------------- None Achievements -------------- None Challenges ------------ None Game ------ Seed ChipEnergyTriangulator Manual? 1 Play Time 00:28:39 Cumulative 1121.5 hours Start 2022.03.15 @ 16:18:58 End 2022.03.20 @ 18:36:21 Sessions 5 Manual Loads 0 Difficulty Explorer Special Mode None Game No. 724 Rogue 710 Adventurer 5 Explorer 9 Win Type - Total 19 Types 10/1/4/4/0/0/0/0/0 Lore% 86 Gallery% 88 Achievement% 81 Wizard Run 0 Options --------- ASCII 0 Keyboard 0 Movement Mouse Keybinds 0 Fullscreen 1 Font 24/Crisp Map View 76x50 Tactical HUD 1 Map Filters NONE Filters NONE Steam 1 RUN: a2e04de9-1f9a-4b15-83cf-d3888d512349